Cogmind - Beta 9.4 *** ADVENTURER MODE // 2020.08.06 @ 17:38:06 Player: Scyralis Result: Destroyed by Y-45 Defender with Heavy Assault Rifle Performance ------------- Evolutions (1) 500 Regions Visited (2) 400 Robots Destroyed (37) 185 Value Destroyed (914) 914 Prototype IDs (1) 20 Alien Tech Used (0) 0 Bonus (8) 8 TOTAL SCORE: 2027 Bonus ------- High Alert Combat Kills 8 Cogmind --------- Core Integrity 0/400 Matter 300/300 Energy 95/100 System Corruption 0% Temperature Cool (9) Movement Core (50) Location -9/Materials Parts ------- > --- POWER (1) -------- (None) > --- PROPULSION (2) --- (None) > --- UTILITY (4) ------ Visual Processing Unit > --- WEAPON (2) ------- Heavy Flail > --- INVENTORY (4) ---- (None) Peak State ------------ > --- POWER ------------ Heavy Ion Engine > --- PROPULSION ------- Compact Wheel Compact Wheel > --- UTILITY ---------- Visual Processing Unit Advanced Sensor Array Improved Terrain Scanner Light Armor Plating > --- WEAPON ----------- Heavy Flail Heavy Flail > --- INVENTORY -------- Ion Engine [Rating: 19] Favorites ----------- Power Ion Engine Engine Ion Engine Propulsion Compact Wheel Wheel Compact Wheel Utility Visual Processing Unit Device Improved Terrain Scanner Processor Visual Processing Unit Protection Light Armor Plating Weapon Heavy Flail Energy Gun EM Pulse Gun Launcher EMP Blaster Impact Weapon Heavy Flail Build | -11 -10 -9 ------- Run | Scr Mat Mat Slots Evolved 2 | . . 2 Power . | . . . Propulsion . | . . . Utility 2 | . . 2 Weapon . | . . . Parts Attached 22 | 5 6 11 Power 2 | 1 . 1 Engine 2 | 1 . 1 Core . | . . . Reactor . | . . . Propulsion 7 | 2 2 3 Treads . | . . . Leg . | . . . Wheel 7 | 2 2 3 Hover . | . . . Flight . | . . . Utility 7 | . 2 5 Device 3 | . 1 2 Storage . | . . . Processor 1 | . 1 . Hackware . | . . . Protection 3 | . . 3 Artifact . | . . . Weapon 6 | 2 2 2 Energy Gun 2 | 2 . . Energy Cannon . | . . . Ballistic Gun . | . . . Ballistic Cannon . | . . . Launcher 2 | . 2 . Special Weapon . | . . . Impact Weapon 2 | . . 2 Slashing Weapon . | . . . Piercing Weapon . | . . . Special Melee Weapon . | . . . Unidentified Prototypes 1 | . . 1 Parts Lost 9 | . 1 8 Power 2 | . . 2 Propulsion 2 | . . 2 Utility 3 | . . 3 Weapon 2 | . 1 1 Highest Loss Streak 7 | . 1 7 Average Slot Usage (%) 83 | . 75 89 Engine 11 | . 14 9 Wheel 23 | . 28 19 Device 11 | . 3 18 Processor 8 | . 5 11 Protection 4 | . . 9 Energy Gun 8 | . 18 . Launcher 6 | . 5 7 Impact Weapon 7 | . . 14 Naked Turns . | . . . Heaviest Build 19 | 9 13 19 Greatest Support 38 | 20 38 38 Greatest Overweight (x) 1 | . . 1 Average Overweight (x) . | . . . Largest Inventory Capacity 4 | 4 4 4 Average Capacity 4 | 4 4 4 Most Carried 4 | 2 3 4 Average Carried . | . . . Final Capacity 4 | 4 4 4 Final Carried 1 | . 1 . Class Distribution -------------------- 77% | Mutant 14% | Assassin 7% | Scavenger-Assassin Dominant Class ---------------- Mutant | -10/Materials Mutant | -9/Materials Resources | -11 -10 -9 ----------- Run | Scr Mat Mat Matter Collected 506 | 250 30 226 Remotely . | . . . Salvage Created 1473 | 75 810 588 Parts 77 | 4 52 21 Haulers Intercepted 4 | . 2 2 Recyclers Shooed . | . . . Parts Field Recycled . | . . . Retrieved Matter . | . . . Parts Self-Destructed . | . . . Prevented . | . . . Kills | -11 -10 -9 ------- Run | Scr Mat Mat Combat Hostiles Destroyed 18 | . 11 7 Melee 4 | . . 4 Guns 10 | . 10 . AOE 1 | . 1 . Classes Destroyed 10 | 2 6 2 Worker 4 | . 3 1 Builder 1 | . 1 . Tunneler 2 | 1 1 . Hauler 4 | . 2 2 Recycler 3 | 1 1 1 Watcher 5 | . 3 2 Swarmer 3 | . 3 . Grunt 11 | . 8 3 Duelist 1 | . . 1 Sentry 3 | . . 3 Best Kill Streak 7 | 2 7 3 Combat Bots Only 5 | . 5 3 Max Kills in Single Turn 6 | 1 6 1 Gunslinging . | . . . Exploded 1 | . 1 . Melee 1 | . . 1 Uniques/NPCs Destroyed . | . . . Combat | -11 -10 -9 -------- Run | Scr Mat Mat Damage Taken 1191 | . 207 984 Core 451 | . 47 404 Absorbed by Shields . | . . . Core Remaining (%) 90 | 100 81 . Volleys Fired 51 | 5 38 8 Largest 2 | 2 2 2 Hottest 90 | 90 90 66 Shots Fired 86 | 10 65 11 Gun 67 | 10 57 . Cannon . | . . . Launcher 19 | . 8 11 Special . | . . . Kinetic . | . . . Thermal 28 | 5 23 . Explosive . | . . . Electromagnetic 58 | 5 42 11 Robot Hit Streak 27 | 8 27 12 Robot Miss Streak 2 | . 1 2 Penetration Max . | . . . Secondary Targets 1 | . 1 . Max Gunslinging Chain 1 | . 1 . Shots Hit Robots 113 | 8 46 59 Core Hits 51 | 2 38 11 Critical Hits . | . . . Critical Kills . | . . . Critical Parts Destroyed . | . . . Melee Attacks 54 | . . 54 Impact 54 | . . 54 Slashing . | . . . Piercing . | . . . Sneak Attacks 3 | . . 3 Combat Hostiles . | . . . Follow-up Attacks 8 | . . 8 Damage Inflicted 3280 | 102 1184 1994 Guns 742 | 102 640 . Cannons . | . . . Explosions 1064 | . 544 520 Melee 1474 | . . 1474 Ramming . | . . . Kinetic . | . . . Thermal 529 | 50 297 182 Explosive . | . . . Electromagnetic 1277 | 52 887 338 Impact 1474 | . . 1474 Slashing . | . . . Piercing . | . . . Highest Corruption . | . . . Average Corruption . | . . . Corruption Purged . | . . . Overload Shots . | . . . Overflow Damage 329 | . 26 303 Projectiles . | . . . Explosions 62 | . 26 36 Melee 267 | . . 267 Knockbacks 2 | . . 2 Impact 2 | . . 2 Kinetic . | . . . Secondary . | . . . Self-Inflicted Damage 14 | . . 14 Shots 1 | . . 1 Rammed . | . . . Targets Rammed . | . . . Kicked . | . . . Crushed . | . . . Highest Temperature 282 | 60 282 6 Average Temperature 68 | 28 75 4 Received Heat Transfer 555 | . 114 441 Siege Activations . | . . . Robots Corrupted 2 | . . 2 Combat Hostiles 2 | . . 2 Parts Fried 11 | . 2 9 Impact Corruptions 13 | . . 13 Robots Melted . | . . . Combat Hostiles . | . . . Parts Melted . | . . . Heat Transferred 1040 | 148 742 150 Parts Sabotaged . | . . . Parts Stolen . | . . . Parts Stripped . | . . . Power Chain Reactions 5 | . 5 . Missiles Intercepted . | . . . Alert | -11 -10 -9 ------- Run | Scr Mat Mat Peak Influence 461 | 10 461 321 Average Influence 201 | 5 236 195 Maximum Alert Level 2 | . 2 1 Low Security (%) 53 | 100 50 51 Level 1 36 | . 25 48 Level 2 10 | . 24 . Level 3 . | . . . Level 4 . | . . . Level 5 . | . . . High Security . | . . . Max Security . | . . . Squads Dispatched 2 | . 2 . Investigation 2 | . 2 . Extermination . | . . . Reinforcement . | . . . Assault . | . . . Garrison . | . . . Intercept . | . . . Construction Impeded . | . . . Haulers Reinforced . | . . . Stealth | -11 -10 -9 --------- Run | Scr Mat Mat Distress Signals 3 | . 1 2 Communications Jammed . | . . . Distress Signals . | . . . Times Spotted 40 | . 13 27 Peak Tracking Total 4 | . 3 4 Tactical Retreats 8 | . . 8 Traps | -11 -10 -9 ------- Run | Scr Mat Mat Traps Triggered 4 | . 4 . Indirectly 4 | . 4 . Trap Hack Attempts . | . . . Triggered . | . . . Disarmed . | . . . Reprogrammed . | . . . Reused . | . . . Traps Extracted . | . . . Installed . | . . . Triggered . | . . . Machines | -11 -10 -9 ---------- Run | Scr Mat Mat Machines Disabled 16 | . 11 5 Max in Single Turn 5 | . 5 2 Machines Sabotaged . | . . . Garrisons Compromised . | . . . Overloaded Fab Kills . | . . . Fab Network Shutdowns . | . . . Hacking | -11 -10 -9 --------- Run | Scr Mat Mat Machines Accessed 6 | . 5 1 Terminals 6 | . 5 1 Fabricators . | . . . Repair Stations . | . . . Recycling Units . | . . . Scanalyzers . | . . . Garrison Access . | . . . Total Hacks 21 | . 20 1 Successful 7 | . 7 . Failed 14 | . 13 1 Catastrophic 1 | . 1 . Database Lockouts . | . . . Manual 18 | . 17 1 Terminals 21 | . 20 1 Fabricators . | . . . Repair Stations . | . . . Recycling Units . | . . . Scanalyzers . | . . . Garrison Access . | . . . Terminal Hacks 6 | . 6 . Robot Analysis 2 | . 2 . Emergency Access Points 1 | . 1 . Unreport Threat 1 | . 1 . Transport Status 1 | . 1 . Hauler Manifests 1 | . 1 . Fabricator Hacks . | . . . Repair Station Hacks . | . . . Recycling Unit Hacks . | . . . Scanalyzer . | . . . Garrison Access Hacks . | . . . Unauthorized Hacks 5 | . 5 . Terminals 1 | . 1 . Detonate 1 | . 1 . Fabricators . | . . . Repair Stations . | . . . Recycling Units . | . . . Scanalyzers . | . . . Garrison Access . | . . . Data Cores Recovered . | . . . Used . | . . . Hacking Detections 6 | . 5 1 Full Trace Events 4 | . 4 . Feedback Events . | . . . Feedback Blocked . | . . . Robot Schematics Acquired . | . . . Robots Built . | . . . Matter . | . . . Time . | . . . Total Robot Build Rating . | . . . Part Schematics Acquired . | . . . Parts Built . | . . . Matter . | . . . Time . | . . . Total Part Build Rating . | . . . Parts Repaired . | . . . Time . | . . . Parts Recycled . | . . . Recycled Matter . | . . . Retrieved Matter . | . . . Retrieved Components . | . . . Parts Scanalyzed . | . . . Part Schematics Acquired . | . . . Parts Damaged . | . . . Bothacking | -11 -10 -9 ------------ Run | Scr Mat Mat Used RIF Installer . | . . . Robots Hacked . | . . . Non-combat . | . . . Combat . | . . . Robot Hacks Applied . | . . . Relay Couplers Released . | . . . Robots Rewired . | . . . Allies Hacked . | . . . Hacks Repelled . | . . . Allies | -11 -10 -9 -------- Run | Scr Mat Mat Total Allies . | . . . Largest Group . | . . . Highest-Rated Group . | . . . Highest-Rated Ally . | . . . Total Orders . | . . . Ally Attacks . | . . . Total Damage . | . . . Kills . | . . . Allies Corrupted . | . . . Allies Melted . | . . . Intel | -11 -10 -9 ------- Run | Scr Mat Mat Robot Analysis Total 2 | . 2 . Derelict Logs Recovered . | . . . Drone Launches . | . . . Drone Recoveries . | . . . Exploration | -11 -10 -9 ------------- Run | Scr Mat Mat Turns Passed 961 | 56 404 501 Spaces Moved 650 | 40 296 314 Core 13 | 7 . 6 Treads . | . . . Legs . | . . . Wheels 637 | 33 296 308 Hover . | . . . Flight . | . . . Fastest Speed 50 | 50 80 50 Average Speed 93 | 74 91 99 Slowest Speed 100 | 80 100 100 Overloaded Moves . | . . . Propulsion Burnouts . | . . . Robots Hopped . | . . . Cave-ins Triggered . | . . . Exploration Rate (%) 32 | 4 64 30 Regions Visited 2 Branch Regions . Pre-discovered Areas . | . . . Known Exits Taken . | . . . Unknown Exits Taken 2 | 1 1 . Scrap Searched . | . . . Spaces Dug . | . . . Terrain Destroyed 92 | . 15 77 Melee . | . . . Projectile . | . . . AOE 92 | . 15 77 Actions | -11 -10 -9 --------- Run | Scr Mat Mat Total 825 | 56 367 402 Wait 19 | . 16 3 Move 648 | 39 295 314 Hop . | . . . Pick Up 25 | 6 8 11 Fast Attach . | . . . Attach 18 | 5 6 7 Detach . | . . . Swap 5 | . . 5 Drop 14 | 1 4 9 Fire 51 | 5 38 8 Melee 45 | . . 45 Ram . | . . . Kick . | . . . Crush . | . . . Escape Stasis . | . . . Rewire . | . . . Trap . | . . . Miscellaneous . | . . . Route ------- -11/Scrapyard -10/Materials (discovered 2 exits: *Mat / [*Min]) -9/Materials (discovered 1 exit: [*Mat]) History --------- Turn | Location | Event 38 | -11/Scrapyard | Discovered new exit (range 16) 57 | -11/Scrapyard | Entered Materials 204 | -10/Materials | Discovered new exit (range 12) 330 | -10/Materials | Build established: Mutant 453 | -10/Materials | Discovered new exit (range 9) 461 | -10/Materials | Entered another Materials area 461 | -9/Materials | Evolved 2 slots: Utility x2 746 | -9/Materials | Discovered new exit (range 9) 911 | -9/Materials | Core integrity fell below 50% 937 | -9/Materials | Core integrity fell below 20% 962 | -9/Materials | Destroyed by Y-45 Defender with Heavy Assault Rifle Last Messages --------------- 00886_ Hvy. Flail follow-up attack on G-34 Mercenary. 00886_ G-34 Mercenary knocked back. 00890_ G-47 Trooper destroyed. 00891_ G-34 Mercenary IFF system glitched. 00893_ Com. Wheel destroyed. 00899_ Adv. Sensor Array destroyed. 00900_ Hvy. Flail follow-up attack on G-34 Mercenary. 00900_ Destroyed Sml. Laser. 00900_ G-34 Mercenary system corrupted by crushing effect. 00901_ G-34 Mercenary system terminally corrupted. 00901_ Aluminum Leg fried. 00905_ Hvy. Ion Engine destroyed. 00911_ Destroyed Heat Sink. 00911_ Y-45 Defender system corrupted by crushing effect. 00911_ Hvy. Flail follow-up attack on Y-45 Defender. 00911_ Y-45 Defender destroyed. 00926_ Com. Wheel destroyed. 00941_ Hvy. Flail destroyed. 00962_ Destroyed Heat Sink. 00962_ Y-45 Defender system corrupted by crushing effect. Map ----- +----------------------------------------------------+ | ??????? """"" + #??????????????????????????? | | ??????? """"" # #??#?????#?????#???????????# | | ?????? """ # #??#????????#??????????????? | | ??????? ?# ####### ########???????????? | | ?????? ?# ??????????? | | ??????######??# * ??????????? | | ??????????????# [%] ??? ??????? | | ??????????????###[##############?????????????? | | ?????????? ?????# ##?????????????????????????? | | ?????? ???###### #??????????????????????????? | | ???? """??+ #??????????????????????????? | | ?????"""""?# #????????????#?????????????? | | ?????"""""?# ##?????????????????????????? | | ?# """"" # #?????????????????????????? | | ?# """ # +?????????????????????????? | | ?# " ######?????????????????????????? | | ??????###### #????#?????????????????????????? | | ???????????# #???????????? ?????????????????? | | ???????????# #??????????????????????????????? | | ???????????# #??????????????????????????????? | | ???????????# ############???????????????????? | | ???????????# ## [ #???????????????????? | | ??????????## ## ] #???????????????????? | | ???#+###+##%* # #???????????????????? | | ???# != [# ##??????????????????? | | ???# % =+% /@Y #??????????????????? | | ???# ##### #= /// ##??????????????????? | | ??????????###### /// #???????????????????? | | ???????????????# #???????????????????? | | ?????????????#?###########???????????????????? | | ????????#????????????????????????????????????? | | ?????????????????????????????????????????????? | | ?????????????????????????????????????????????? | | ?????????????????????????????????????????????? | | ?????????????????????????????????????????????? | | ?????????????????????????????????????????????? | | ?????????????????????????????????????????????? | | | | | | | | | | | | | | | | | | | | | | | | | | | +----------------------------------------------------+ Best States ------------- Heat Dissipation 28 Energy Generation 14 Energy Capacity 280 Matter Stores 300 Matter Capacity 300 Sight Range 18 Robot Scan Range 16 Terrain Scan Range 16 Terrain Scan Density 10 Additional Mass Support 6 Armor Coverage 150 Resistance: KI 20 Resistance: TH 20 Resistance: EX 20 Resistance: EM 20 Resistance: I 20 Resistance: S 20 Resistance: P 20 Power Shielding 33 Evasion (%) 44 Offensive Hacking 10 Item Schematics ----------------- None Robot Schematics ------------------ None Fabricated ------------ Nothing Alien Tech Used ----------------- None Achievements -------------- None Challenges ------------ None Game ------ Seed FlakGravmagScrap Manual? 0 Play Time 00:10:20 Cumulative 229.9 hours Start 2020.08.06 @ 17:28:51 End 2020.08.06 @ 17:38:06 Sessions 1 Manual Loads 0 Difficulty Adventurer Special Mode None Game No. 91 Rogue 0 Adventurer 91 Explorer 0 Win Type - Total 1 Types 1/0/0/0/0/0/0 Lore% 33 Gallery% 59 Achievement% 44 Wizard Run 0 Options --------- ASCII 0 Keyboard 0 Movement Numpad Keybinds 0 Fullscreen 0 Font 12/Smallcaps Map View 83x54 Tactical HUD 1 Map Filters NONE Filters NONE Steam X RUN: 20d839eb-244e-4224-9e25-df0815d1bdf5